Cogmind - Beta 15 @@@ ROGUE MODE // 2025.07.31 @ 08:18:09 Player: BattleBruvva Result: Destroyed by TA-14E(j) with Overtuned Pulse Rifle Performance ------------- Evolutions (0) 0 Regions Visited (3) 600 Robots Destroyed (16) 80 Value Destroyed (393) 393 Prototype IDs (7) 140 Alien Tech Used (0) 0 Bonus (800) 800 TOTAL SCORE: 2013 Bonus ------- Registered with UFD 300 Met Optimus in HQ 500 Cogmind --------- Core Integrity 0/250 Matter 223/300 Energy 97/200 System Corruption 1% Temperature Warning (302) Movement Core (1550) Ox30 Location -7/Scraptown Parts ------- > --- POWER (1) -------- Subdweller Power Source > --- PROPULSION (2) --- (None) > --- UTILITY (2) ------ Cooling System Huge Storage Unit > --- WEAPON (2) ------- Advanced Beam Cannon > --- INVENTORY (25) --- Ion Engine Ion Engine Overtuned Treads Wheel Scrap Suit Improved Heat Sink Machine Analyzer Signal Interpreter Improved Terrain Scanner Experimental Terrain Scan Processor Seismic Detector Transport Network Coupler Targeting Computer Core Shielding Utility Shielding Makeshift System Shield Beam Cannon Beam Cannon Advanced Beam Cannon Makeshift Hammer DRS Beacon (Ready) Peak State ------------ > --- POWER ------------ Subdweller Power Source > --- PROPULSION ------- Compact Wheel Compact Wheel > --- UTILITY ---------- Cooling System Huge Storage Unit > --- WEAPON ----------- Gatling Laser Advanced Beam Cannon > --- INVENTORY -------- Ion Engine Ion Engine Overtuned Treads Wheel Scrap Suit Improved Heat Sink Machine Analyzer Signal Interpreter Improved Terrain Scanner Experimental Terrain Scan Processor Seismic Detector Transport Network Coupler Targeting Computer Core Shielding Utility Shielding Makeshift System Shield Beam Cannon Beam Cannon Advanced Beam Cannon Makeshift Hammer DRS Beacon [Rating: 19] Favorites ----------- Power Ion Engine Engine Ion Engine Propulsion Compact Wheel Treads Light Treads Wheel Compact Wheel Utility Huge Storage Unit Device Cooling System Storage Huge Storage Unit Weapon Advanced Beam Cannon Energy Gun Medium Laser Energy Cannon Advanced Beam Cannon Ballistic Gun Light Assault Rifle Build | -11 -10 -10 -7 ------- Run | Yrd Mat Sub Scr Slots Evolved . | . . . . Power . | . . . . Propulsion . | . . . . Utility . | . . . . Weapon . | . . . . Parts Attached 26 | 8 13 . 5 Power 3 | 1 1 . 1 Engine 3 | 1 1 . 1 Core . | . . . . Reactor . | . . . . Propulsion 8 | 2 3 . 3 Treads 3 | . 2 . 1 Leg . | . . . . Wheel 5 | 2 1 . 2 Hover . | . . . . Flight . | . . . . Utility 5 | 2 3 . . Device 2 | 1 1 . . Storage 3 | 1 2 . . Processor . | . . . . Hackware . | . . . . Protection . | . . . . Artifact . | . . . . Weapon 10 | 3 6 . 1 Energy Gun 3 | 1 1 . 1 Energy Cannon 3 | . 3 . . Ballistic Gun 4 | 2 2 . . Ballistic Cannon . | . . . . Launcher . | . . . . Special Weapon . | . . . . Impact Weapon . | . . . . Slashing Weapon . | . . . . Piercing Weapon . | . . . . Special Melee Weapon . | . . . . Unidentified Prototypes 1 | . 1 . . Parts Lost 7 | . 3 . 4 Power 1 | . . . 1 Propulsion 4 | . 2 . 2 Utility 1 | . 1 . . Weapon 1 | . . . 1 Highest Loss Streak 4 | . 3 . 4 To Critical Strikes . | . . . . Average Backups 17 | 3 11 16 21 Power 2 | . 1 2 2 Propulsion 1 | 1 1 2 2 Utility 8 | . 4 7 10 Weapon 5 | . 3 5 6 Tool/Special . | . . . . Unused Backups 24 | . 5 . 19 Power 3 | . 2 . 1 Propulsion 3 | . 2 . 1 Utility 13 | . 1 . 12 Weapon 5 | . . . 5 Tool/Special . | . . . . Average Slot Usage (%) 82 | . 99 100 71 Engine 13 | . 14 14 13 Treads 10 | . 16 28 5 Wheel 16 | . 10 . 22 Device 13 | . 13 14 14 Storage 14 | . 14 14 14 Energy Gun 2 | . 3 14 . Energy Cannon 7 | . 18 14 . Ballistic Gun 1 | . 5 . . Peak Build Rating 19 | 7 13 12 19 Average Rating 10 | 5 11 12 10 On Entrance 7 | . 7 12 12 Naked Turns . | . . . . Heaviest Build 95 | 13 95 93 95 Greatest Support 40 | 20 40 40 40 Greatest Overweight (x) 5 | . 5 2 2 Average Overweight (x) 1 | . 1 2 2 Largest Inventory Capacity 25 | 8 25 25 25 Average Capacity 23 | 6 20 25 25 Most Carried 25 | 8 16 17 25 Average Carried 18 | 3 11 16 22 Final Capacity 25 | 8 25 25 25 Final Carried 22 | 8 16 17 22 Class Distribution -------------------- 100% | Mutant Dominant Class ---------------- Mutant | -10/Materials Mutant | -10/Subcaves Mutant | -7/Scraptown Resources | -11 -10 -10 -7 ----------- Run | Yrd Mat Sub Scr Matter Collected 557 | 213 334 . 10 Remotely . | . . . . Salvage Created 580 | 76 388 . 116 Parts 32 | 8 19 . 5 Haulers Intercepted . | . . . . Recyclers Shooed . | . . . . Parts Field Recycled . | . . . . Retrieved Matter . | . . . . Parts Self-Destructed 1 | . . 1 . Prevented . | . . . . Kills | -11 -10 -10 -7 ------- Run | Yrd Mat Sub Scr Combat Hostiles Destroyed 12 | . 10 . 2 Guns 2 | . 2 . . Cannons 10 | . 8 . 2 Classes Destroyed 7 | 2 3 . 2 Tunneler 2 | 1 1 . . Recycler 1 | 1 . . . Operator 1 | . 1 . . Swarmer 3 | . 3 . . Grunt 7 | . 7 . . Guru 1 | . . . 1 Scrapper 1 | . . . 1 Best Kill Streak 4 | 2 4 . 2 Combat Bots Only 4 | . 4 . 2 Max Kills in Single Turn 1 | 1 1 . 1 Gunslinging . | . . . . Exploded . | . . . . Melee . | . . . . Uniques/NPCs Destroyed . | . . . . Combat | -11 -10 -10 -7 -------- Run | Yrd Mat Sub Scr Hostile Shots Fired 120 | . 76 . 44 Missed 29 | . 24 . 5 Hits 91 | . 52 . 39 Projectile 91 | . 52 . 39 Critical Strikes 2 | . . . 2 Damage Taken 1065 | . 523 . 542 Core 265 | . 93 . 172 Absorbed by Shields . | . . . . Regen/Repaired (Parts) 113 | . 113 . . Core Remaining (%) 100 | 100 . . . Volleys Fired 51 | 6 39 . 6 Largest 2 | 2 2 . 2 Hottest 148 | 40 136 . 148 Shots Fired 101 | 12 78 . 11 Gun 54 | 12 37 . 5 Cannon 47 | . 41 . 6 Launcher . | . . . . Special . | . . . . Kinetic 40 | 12 28 . . Thermal 61 | . 50 . 11 Explosive . | . . . . Electromagnetic . | . . . . Robot Hit Streak 12 | 6 12 . 5 Robot Miss Streak 3 | 1 3 . 2 Penetration Max . | . . . . Secondary Targets . | . . . . Shots Hit Robots 67 | 9 48 . 10 Core Hits 24 | 4 16 . 4 Critical Kills . | . . . . Critical Parts Destroyed . | . . . . Critical Strikes 1 | . 1 . . Burn 1 | . 1 . . Melee Attacks . | . . . . Impact . | . . . . Slashing . | . . . . Piercing . | . . . . Sneak Attacks . | . . . . Combat Hostiles . | . . . . Follow-up Attacks . | . . . . Damage Inflicted 1016 | 75 714 . 227 Guns 399 | 75 201 . 123 Cannons 617 | . 513 . 104 Explosions . | . . . . Melee . | . . . . Ramming . | . . . . Kinetic 202 | 75 127 . . Thermal 814 | . 587 . 227 Explosive . | . . . . Electromagnetic . | . . . . Impact . | . . . . Slashing . | . . . . Piercing . | . . . . Highest Corruption 1 | . 1 1 1 Average Corruption 1 | . 1 1 1 Corruption Purged . | . . . . Corruption Blocked . | . . . . Effects 31 | . 13 2 16 Message Errors 6 | . 3 . 3 Matter Fused 8 | . 2 . 6 Heat Flow Errors 4 | . 4 . . Energy Discharges 10 | . 4 2 4 Data Loss (minor) 1 | . . . 1 Alerts 1 | . . . 1 Weapon Failures 1 | . . . 1 Overload Shots . | . . . . Overflow Damage 10 | . 10 . . Projectiles 10 | . 10 . . Explosions . | . . . . Melee . | . . . . Knockbacks . | . . . . Impact . | . . . . Kinetic . | . . . . Secondary . | . . . . Self-Inflicted Damage . | . . . . Shots . | . . . . Rammed . | . . . . Targets Rammed . | . . . . Kicked . | . . . . Crushed . | . . . . Highest Temperature 406 | . 406 . 290 Average Temperature 116 | . 115 . 125 Received Heat Transfer 482 | . 228 . 254 Effects 4 | . 4 . . Shutdowns 1 | . 1 . . Interference 2 | . 2 . . Damage (minor) 1 | . 1 . . Siege Activations . | . . . . Martial Activations . | . . . . Shielding Activations . | . . . . Robots Disrupted . | . . . . Combat Hostiles . | . . . . Robots Corrupted . | . . . . Combat Hostiles . | . . . . Parts Fried . | . . . . Impact Corruptions . | . . . . Robots Melted . | . . . . Combat Hostiles . | . . . . Parts Melted 8 | . 7 . 1 Heat Transferred 1525 | . 1221 . 304 Parts Sabotaged . | . . . . Parts Stolen . | . . . . Parts Stripped . | . . . . Power Chain Reactions . | . . . . Alert | -11 -10 -10 -7 ------- Run | Yrd Mat Sub Scr Maximum Alert Level . | . . . . Low Security (%) 100 | 100 100 . . Level 1 . | . . . . Level 2 . | . . . . Level 3 . | . . . . Level 4 . | . . . . Level 5 . | . . . . High Security . | . . . . Max Security . | . . . . Peak Influence 101 | 5 101 . . Initial . | . . . . Average 16 | . 17 . . Influence Increases 303 | 10 293 . . Destroy 0b10 Robot/C 200 | . 200 . . Destroy 0b10 Robot/NC 20 | 10 10 . . Destroy Leader 50 | . 50 . . Destroy Structure 3 | . 3 . . Lose Combat Pursuer 30 | . 30 . . Influence Decreases 303 | 10 293 . . Time Decay 273 | 10 263 . . Lost Part 30 | . 30 . . Squads Dispatched 4 | . 4 . . Investigation 3 | . 3 . . Extermination . | . . . . Reinforcement 1 | . 1 . . Assault . | . . . . Garrison . | . . . . Intercept . | . . . . Searches Triggered . | . . . . Construction Impeded . | . . . . Haulers Reinforced . | . . . . Active Scanning Responses . | . . . . Cargo Convoy Interrupts . | . . . . Stealth | -11 -10 -10 -7 --------- Run | Yrd Mat Sub Scr Distress Signals 1 | . 1 . . Communications Jammed . | . . . . Distress Signals . | . . . . Times Spotted 24 | . 14 . 10 Peak Tracking Total 8 | . 4 . 8 Tactical Retreats 1 | . 1 . . Traps | -11 -10 -10 -7 ------- Run | Yrd Mat Sub Scr Traps Triggered 2 | . 2 . . Indirectly . | . . . . Trap Hack Attempts . | . . . . Triggered . | . . . . Disarmed . | . . . . Reprogrammed . | . . . . Reused . | . . . . Traps Extracted . | . . . . Installed . | . . . . Triggered . | . . . . Machines | -11 -10 -10 -7 ---------- Run | Yrd Mat Sub Scr Machines Disabled . | . . . . Max in Single Turn . | . . . . Machines Repaired . | . . . . Machines Dismantled . | . . . . Machines Sabotaged . | . . . . Overloaded Fab Kills . | . . . . Hacking | -11 -10 -10 -7 --------- Run | Yrd Mat Sub Scr Machines Accessed 16 | . 8 1 7 Terminals 6 | . 6 . . Fabricators . | . . . . Repair Stations 1 | . 1 . . Recycling Units 1 | . 1 . . Scanalyzers . | . . . . Garrison Access . | . . . . Total Hacks 69 | . 21 4 44 Successful 61 | . 13 4 44 Failed 8 | . 8 . . Catastrophic 2 | . 2 . . Database Lockouts . | . . . . Manual 7 | . 7 . . Terminals 15 | . 15 . . Fabricators . | . . . . Repair Stations 3 | . 3 . . Recycling Units 3 | . 3 . . Scanalyzers . | . . . . Garrison Access . | . . . . Terminal Hacks 56 | . 8 4 44 Record 41 | . . 4 37 Robot Analysis 7 | . . . 7 Emergency Access Points 3 | . 3 . . Alert Level 3 | . 3 . . Locate Traps 1 | . 1 . . Garrison Status 1 | . 1 . . Fabricator Hacks . | . . . . Repair Station Hacks 2 | . 2 . . Scan Component 1 | . 1 . . Repair 1 | . 1 . . Recycling Unit Hacks 1 | . 1 . . Report Inventory 1 | . 1 . . Scanalyzer . | . . . . Garrison Access Hacks . | . . . . Unauthorized Hacks 2 | . 2 . . Terminals 2 | . 2 . . Botnet 2 | . 2 . . Fabricators . | . . . . Repair Stations . | . . . . Recycling Units . | . . . . Scanalyzers . | . . . . Garrison Access . | . . . . Data Cores Recovered . | . . . . Used . | . . . . Hacking Detections 6 | . 6 . . Full Trace Events 2 | . 2 . . Feedback Events . | . . . . Feedback Blocked . | . . . . Robot Schematics Acquired . | . . . . Robots Built . | . . . . Authchips . | . . . . Time . | . . . . Total Robot Build Rating . | . . . . Part Schematics Acquired . | . . . . Parts Built . | . . . . Authchips . | . . . . Time . | . . . . Total Part Build Rating . | . . . . Parts Repaired 1 | . 1 . . Time 51 | . 51 . . Parts Recycled . | . . . . Recycled Matter . | . . . . Retrieved Matter . | . . . . Retrieved Components . | . . . . Parts Scanalyzed . | . . . . Part Schematics Acquired . | . . . . Parts Damaged . | . . . . Bothacking | -11 -10 -10 -7 ------------ Run | Yrd Mat Sub Scr Used RIF Installer . | . . . . Robots Hacked . | . . . . Non-combat . | . . . . Combat . | . . . . Robot Hacks Applied . | . . . . Relay Couplers Released . | . . . . Fabnet Peak Effective % . | . . . . Robots Rewired . | . . . . Allies Hacked . | . . . . Hacks Repelled . | . . . . Allies | -11 -10 -10 -7 -------- Run | Yrd Mat Sub Scr Total Allies . | . . . . Largest Group . | . . . . Highest-Rated Group . | . . . . Highest-Rated Ally . | . . . . Total Orders . | . . . . Ally Attacks . | . . . . Total Damage . | . . . . Kills . | . . . . Allies Corrupted . | . . . . Allies Melted . | . . . . Intel | -11 -10 -10 -7 ------- Run | Yrd Mat Sub Scr Active Infowar (turns) 563 | 28 535 . . Seismic 563 | 28 535 . . Robot Analysis Total 7 | . . . 7 Derelict Logs Recovered . | . . . . Drone Launches . | . . . . Drone Recoveries . | . . . . Exploration | -11 -10 -10 -7 ------------- Run | Yrd Mat Sub Scr Turns Passed 4974 | 95 1588 382 2909 Spaces Moved 2962 | 75 808 120 1959 Core 1 | 1 . . . Treads 568 | . 277 120 171 Legs . | . . . . Wheels 2393 | 74 531 . 1788 Hover . | . . . . Flight . | . . . . Fastest Speed 50 | 50 80 320 130 Average Speed 159 | 79 173 320 146 Slowest Speed 320 | 80 320 320 320 Overloaded Moves . | . . . . Propulsion Burnouts . | . . . . Robots Hopped . | . . . . Potential Cave-ins . | . . . . Cave-ins Triggered . | . . . . Exploration Rate (%) 50 | 4 90 16 93 Regions Visited 3 Branch Regions 2 Pre-discovered Areas 1 | . . 1 . Known Exits Taken . | . . . . Unknown Exits Taken 3 | 1 1 1 . Scrap Searched 3 | . . . 3 Spaces Dug . | . . . . Terrain Destroyed 1 | . 1 . . Melee . | . . . . Projectile 1 | . 1 . . AOE . | . . . . Terrain Rammed . | . . . . Walls Destroyed . | . . . . Machines Disabled . | . . . . Actions | -11 -10 -10 -7 --------- Run | Yrd Mat Sub Scr Total 3133 | 96 927 120 1990 Wait 37 | . 36 . 1 Move 2959 | 74 807 119 1959 Hop . | . . . . Pick Up 36 | 8 17 1 10 Fast Attach 7 | 7 . . . Attach 7 | . 4 . 3 Detach 2 | . . . 2 Swap 16 | 1 12 . 3 Drop 18 | . 12 . 6 Fire 51 | 6 39 . 6 Melee . | . . . . Ram . | . . . . Kick . | . . . . Crush . | . . . . Escape Stasis . | . . . . Rewire . | . . . . Trap . | . . . . Miscellaneous . | . . . . Route ------- -11/Scrapyard -10/Materials (discovered 5 exits: [*Mat x2] / [*Min x2] / *Sub) -10/Subcaves -7/Scraptown (discovered 2 exits: [*Fac x2]) History --------- Turn | Location | Event 13 | -11/Scrapyard | Discovered new exit (range 16) 96 | -11/Scrapyard | Entered Materials 97 | -10/Materials | Met a group of wandering Federalists 239 | -10/Materials | Discovered new exit (range 6) 308 | -10/Materials | Build established: Mutant 374 | -10/Materials | Discovered new exit (range 16) 441 | -10/Materials | Discovered new exit (range 14) 747 | -10/Materials | Lost 3 parts (2n1u) 937 | -10/Materials | Discovered new exit (range 14) 1306 | -10/Materials | Repaired Adv. Beam Cannon 1612 | -10/Materials | Discovered new exit (range 13) 1684 | -10/Materials | Entered Subcaves 1685 | -10/Subcaves | Continued accompanying wandering Federalists (1) 1723 | -10/Subcaves | Visited Clippyterm 1732 | -10/Subcaves | Learned location of Extension (-4) 1732 | -10/Subcaves | Learned Research security intel 2066 | -10/Subcaves | Entered Scraptown 2813 | -7/Scraptown | Visited UFD Registry 2813 | -7/Scraptown | Registered with UFD as "Arcchaser" 2830 | -7/Scraptown | Visited Cyclists 2852 | -7/Scraptown | Entered Cyclist Reading Room 2910 | -7/Scraptown | Visited TADAMA 2923 | -7/Scraptown | Visited Comm Corps 3344 | -7/Scraptown | Discovered new exit (range 7) 3484 | -7/Scraptown | Visited CR-KLE's Repair Center 3521 | -7/Scraptown | Visited Cave Peace 3618 | -7/Scraptown | Visited Shadow of the Wyrm 3631 | -7/Scraptown | Visited CPS Storage 3692 | -7/Scraptown | Visited Derelict Rescue Squad 3707 | -7/Scraptown | Found DRS Beacon 3758 | -7/Scraptown | Visited Botcube Research 3800 | -7/Scraptown | Visited Infowarlord's Domain 3839 | -7/Scraptown | Found Exp. Terrain Scan Processor 3876 | -7/Scraptown | Visited Research Penetration Think Tank 3927 | -7/Scraptown | Visited Junk Repository 3984 | -7/Scraptown | Visited Scrap Suit Storage 4009 | -7/Scraptown | Found Scrap Suit 4135 | -7/Scraptown | Discovered new exit (range 5) 4249 | -7/Scraptown | Visited Chapter 10 4347 | -7/Scraptown | Visited Analyses Database 4839 | -7/Scraptown | Met Optimus 4839 | -7/Scraptown | Accepted into 0bPrime 4929 | -7/Scraptown | Civil war broke out across Scraptown 4960 | -7/Scraptown | Core integrity fell below 50% 4971 | -7/Scraptown | Core integrity fell below 20% 4975 | -7/Scraptown | Destroyed by TA-14E(j) with Overtuned Pulse Rifle Last Messages --------------- 04953_ Mak. Microdissipator Network melted. 04953_ CL-ANU(j) destroyed. 04953_ Penetrated by Bolt. 04959_ Bolt penetrates Wall. 04959_ Ion Engine destroyed. 04959_ System corrupted: Gatling Laser failed to cycle. 04965_ Bolt penetrates Wall. 04965_ Critical hit (Burn: +50). 04966_ 9C-J6L(p) destroyed. 04967_ Critical hit (Burn: +50). 04967_ Bolt penetrates Wall. 04967_ Bolt penetrates TA-14E(j). 04968_ Com. Wheel destroyed. 04969_ V5-8O9(j) heat damages Mak. Salvage Targeting Computer. 04970_ Bolt penetrates Wall. 04971_ Com. Wheel destroyed. 04972_ Gatling Laser destroyed. 04973_ Bolt penetrates UP-HTM(p). Map ----- +----------------------------------------------------+ | | | | | | | | | | | | | | | ?????????????????????????????????????????????????? | | ?????????????????????????????????????????????????? | | ?????????????????????????????????????????????????? | | ?????????????????????????????????????????????????? | | ?????????????????????????????????????????????????? | | ?????????????????????????????????????????????????? | | ?????????????????????????????????????????????????? | | ?????????????????????????????????????????????????? | | ?????????????????????????????????????????????????? | | ?????????????????????????????????????????????????? | | ?????????????????????????????????????????????????? | | ???????????????????????????????#####?????????????? | | ???????????????????????????????#"""#?????????????? | | ###################???####?????#" "#?????????????? | | """##"""##""|##"""#??## ##????# <=#?????????????? | | "" ##"" ##"" ##!!"#### !#####[!%!##????????????? | | "" j !jjjj*!%[! #????????????? | | %[jp!!!%=== #????????????? | | ###################### !@##"%#######????????????? | | ?????????????????????## ##???#??????????????????? | | ??????????????????????# #???????????????????????? | | ??????????????????????# #???????????????????????? | | ??????????????????????# #??##??#????????????????? | | ??????????????????????# #?? ## ###??????????????? | | ??????????????????????# ### # # #??????????????? | | #########?????????????# ## # #??????????????? | | """"""""#??############ ## #??????????????? | | " X " ""#??# #!]!#/!## # #??????????????? | | " ""#??# !# ] #[|## # #??????????????? | | "" """#??# # # ## ## ???????????????? | | #??# ## # ?????????????????? | | #??# ## #""""???????????????????? | | ##### ###??###### ##### ## #????????????????????? | | ##### ########### ##### ## ##############???????? | | """"" """"""""""" """"" "" "## #"""""#""#???????? | | "## ! ! #???????? | | "## #???????? | | "## #???????? | | "## X" #???????? | | ##"#???????? | | """"""""""""""""""""""" "## !! !!#??????????? | | """"""""""""""""""""""" "## #"""""#??????????? | | ### ################"" "##########??????????? | +----------------------------------------------------+ Best States ------------- Heat Dissipation 47 Energy Generation 15 Energy Capacity 250 Matter Stores 300 Matter Capacity 300 Sight Range 16 Terrain Scan Density 10 Evasion (%) 44 Recoil Reduction 2 Item Schematics ----------------- None Robot Schematics ------------------ None Fabricated ------------ Nothing Repaired ---------- Adv. Beam Cannon | 13% | -10/Materials Alien Tech Used ----------------- None Achievements -------------- None Challenges ------------ None Game ------ Seed AdvancedArchitectLink Manual? 0 Play Time 00:44:22 Cumulative 25.2 hours Start 2025.07.30 @ 21:24:12 End 2025.07.31 @ 08:18:09 Sessions 3 Manual Loads 0 Difficulty Rogue Special Mode None Game No. 8 Rogue 3 Adventurer 5 Explorer 0 Win Type - Total 2 Types 0/0/2/0/0/0/0/0/0/0 Lore% 23 Gallery% 29 Achievement% 33 Wizard Run 0 Options --------- Layout 1 ASCII 0 Keyboard 1 Movement Arrows Keybinds 0 Fullscreen 2 Font 24/Smallcaps Map View 50x35 Zoom Use 0% Tactical HUD 1 Map Filters NONE Filters NONE Steam 1 RUN: fa8bc634-ad79-4b59-887d-89951d72eaff